Cogmind - Beta 15 @@@ ROGUE MODE // 2025.05.13 @ 03:06:59 Player: grayrest Result: Self-destructed Performance ------------- Evolutions (6) 3000 Regions Visited (16) 3200 Robots Destroyed (84) 420 Value Destroyed (3037) 3037 Prototype IDs (26) 520 Alien Tech Used (0) 0 Bonus (3783) 3783 TOTAL SCORE: 13960 Bonus ------- Follower Combat Kills 598 Entered DSFs 500 Aligned with FarCom 300 Acquired ECA 300 Met Warlord at Base 500 MAIN.C Attacked Warlord 500 Warlord Defense Kills 1414 Friendly Fire -329 Cogmind --------- Core Integrity 983/1150 Matter 225/300 Energy 29/100 System Corruption 4% Temperature Cool (0) Movement Core (100) Ox1 Location -4/Factory Parts ------- > --- POWER (2) -------- (None) > --- PROPULSION (6) --- (None) > --- UTILITY (9) ------ Improved Terrain Scanner Encrypted Comm Array Target Analyzer Core Analyzer Improved Weapon Shielding Improved Recalibrator > --- WEAPON (2) ------- (None) > --- INVENTORY (5) ---- Faulty Heavy Antimatter Reactor Huge Storage Unit Variable Charge Gun Disruptor Cannon Disruptor Cannon Peak State ------------ > --- POWER ------------ Improved Deuterium Engine > --- PROPULSION ------- Advanced Treads Advanced Treads Advanced Treads Gravmag Array > --- UTILITY ---------- High-capacity Storage Unit Improved Transmission Jammer Hardened Medium Armor Plating Army-in-a-Box > --- WEAPON ----------- Variable Charge Gun Variable Charge Gun > --- INVENTORY -------- Improved Deuterium Engine Armored Treads Armored Treads Armored Treads Armored Treads Armored Treads Armored Treads Field Propulsion Drive Target Analyzer Hardened Light Armor Plating Hardened Medium Armor Plating Remote Shield Hacking Suite Hacking Suite Improved Recalibrator Variable Charge Gun Proton Missile Launcher Axe [Rating: 105] Favorites ----------- Power Ion Engine Engine Ion Engine Power Core Reinforced Fission Core Reactor Micro Antimatter Reactor Propulsion Armored Treads Treads Armored Treads Leg Titanium Leg Wheel Wheel Hover Unit Gravmag Array Flight Unit Impulse Thruster Array Utility High-capacity Storage Unit Device Advanced Heat Sink Storage High-capacity Storage Unit Processor Target Analyzer Hackware Hacking Suite Protection Hardened Medium Armor Plating Weapon Assault Rifle Energy Gun Variable Charge Gun Energy Cannon Disruptor Cannon Ballistic Gun Assault Rifle Launcher Proton Missile Launcher Impact Weapon Heavy Hammer Slashing Weapon Axe Build | -11 -10 -10 -10 -9 -8 -7 -7 -7 -6 -6 -5 -5 -5 -5 -4 -4 ------- Run | Yrd Mat Min Exi Min Mat Fac Low Low Fac DSF Fac Upp Upp War Pro Fac Slots Evolved 12 | . . . . . 4 2 . . 2 . 2 . . . . 2 Power 1 | . . . . . . . . . . . . . . . . 1 Propulsion 4 | . . . . . . 1 . . 1 . 1 . . . . 1 Utility 7 | . . . . . 4 1 . . 1 . 1 . . . . . Weapon . | . . . . . . . . . . . . . . . . . Parts Attached 115 | 8 7 . . 9 21 8 4 1 1 11 16 6 1 10 3 9 Power 13 | 1 1 . . 2 2 1 1 . . 1 . 1 . 2 . 1 Engine 8 | 1 1 . . 2 2 . . . . 1 . 1 . . . . Core 3 | . . . . . . 1 1 . . . . . . 1 . . Reactor 2 | . . . . . . . . . . . . . . 1 . 1 Propulsion 29 | 3 . . . 3 4 2 2 . . 8 2 1 . 3 1 . Treads 21 | 2 . . . 2 2 1 2 . . 8 1 1 . 1 1 . Leg 2 | . . . . . 2 . . . . . . . . . . . Wheel 3 | 1 . . . 1 . 1 . . . . . . . . . . Hover 1 | . . . . . . . . . . . 1 . . . . . Flight 2 | . . . . . . . . . . . . . . 2 . . Utility 44 | 1 3 . . 1 7 4 . 1 1 . 11 1 1 4 1 8 Device 23 | 1 2 . . . 4 2 . . 1 . 5 1 . 1 1 5 Storage 2 | . 1 . . . 1 . . . . . . . . . . . Processor 6 | . . . . 1 1 . . . . . 1 . . 1 . 2 Hackware 2 | . . . . . . . . . . . 2 . . . . . Protection 11 | . . . . . 1 2 . 1 . . 3 . 1 2 . 1 Artifact . | . . . . . . . . . . . . . . . . . Weapon 29 | 3 3 . . 3 8 1 1 . . 2 3 3 . 1 1 . Energy Gun 14 | . . . . 1 4 1 . . . 2 2 3 . 1 . . Energy Cannon 3 | . . . . . 1 . . . . . 1 . . . 1 . Ballistic Gun 8 | 3 2 . . 1 2 . . . . . . . . . . . Ballistic Cannon . | . . . . . . . . . . . . . . . . . Launcher 1 | . . . . . . . 1 . . . . . . . . . Special Weapon . | . . . . . . . . . . . . . . . . . Impact Weapon 1 | . . . . 1 . . . . . . . . . . . . Slashing Weapon 2 | . 1 . . . 1 . . . . . . . . . . . Piercing Weapon . | . . . . . . . . . . . . . . . . . Special Melee Weapon . | . . . . . . . . . . . . . . . . . Unidentified Prototypes 3 | . . . . . 2 . . . . . . . . . . 1 Parts Lost 53 | . 2 . . 4 7 . . 4 . . 3 3 2 16 6 6 Power 4 | . . . . 1 1 . . 1 . . . . . . 1 . Propulsion 14 | . . . . 2 2 . . 1 . . . . . 6 2 1 Utility 26 | . 1 . . 1 2 . . 2 . . 2 2 2 7 3 4 Weapon 9 | . 1 . . . 2 . . . . . 1 1 . 3 . 1 Highest Loss Streak 14 | . 1 . . 3 7 . . 3 . . 2 2 1 14 2 4 To Critical Strikes 1 | . . . . . . . . . . . . . . 1 . . Average Backups 13 | 1 5 7 9 13 13 14 14 13 12 16 18 19 19 17 3 4 Power 1 | . . 1 2 3 3 1 1 1 . 1 1 2 2 2 . . Propulsion 2 | . . . . . 1 2 1 1 1 4 5 4 4 3 . . Utility 5 | . 1 4 5 7 6 5 7 6 6 6 6 6 6 5 . . Weapon 3 | . 3 2 2 2 2 5 5 5 5 5 4 6 5 5 2 2 Tool/Special . | . . . . . . . . . . . . . . . . . Unused Backups 19 | . . . 2 1 3 3 . . . . 3 1 . 5 . 1 Power 2 | . . . . . . 1 . . . . . . . 1 . . Propulsion 3 | . . . . . . 1 . . . . 1 . . 1 . . Utility 8 | . . . 1 . 1 . . . . . 1 1 . 3 . 1 Weapon 5 | . . . . 1 2 1 . . . . 1 . . . . . Tool/Special 1 | . . . 1 . . . . . . . . . . . . . Average Slot Usage (%) 87 | . 98 100 100 83 81 92 100 88 66 65 71 93 93 96 34 42 Engine 7 | . 14 14 14 13 8 6 . . 6 6 5 5 5 3 . . Treads 22 | . 26 28 28 17 6 10 23 17 13 24 25 29 29 28 3 4 Device 15 | . 20 14 14 1 15 23 23 18 9 6 10 14 16 19 2 15 Storage 7 | . 6 14 14 14 9 7 7 7 6 6 5 5 5 4 . . Processor 4 | . . . . . 9 7 7 7 3 . 1 5 5 5 6 13 Hackware 3 | . . . . . . . . . . . 1 11 11 10 5 . Protection 4 | . . . . . 5 14 15 15 9 6 7 7 5 5 . 2 Energy Gun 6 | . . . . 7 6 12 13 15 13 9 10 10 11 10 . . Ballistic Gun 8 | . 27 28 28 13 5 . . . . . . . . . . . Peak Build Rating 105 | 6 9 8 15 16 36 46 50 50 84 92 105 77 78 83 51 52 Average Rating 44 | 4 7 8 9 15 27 42 46 43 64 87 86 74 74 76 37 40 On Entrance 39 | . 6 8 8 14 16 34 43 50 37 84 92 69 77 75 43 23 Naked Turns . | . . . . . . . . . . . . . . . . . Heaviest Build 149 | 10 50 50 50 56 58 65 74 77 119 148 149 91 85 99 13 11 Greatest Support 117 | 40 40 40 40 40 46 74 85 85 51 94 106 112 112 117 16 3 Greatest Overweight (x) 16 | . 3 1 1 14 16 1 . 1 4 4 3 . . 1 . 3 Average Overweight (x) . | . . 1 1 4 1 . . . 3 1 . . . . . 1 Largest Inventory Capacity 20 | 5 20 20 20 20 20 20 20 20 20 20 20 20 20 20 5 5 Average Capacity 18 | 5 12 20 20 20 19 20 20 20 17 18 20 20 20 19 5 5 Most Carried 20 | 2 7 9 17 20 20 20 20 20 20 18 20 20 20 20 4 5 Average Carried 14 | 1 5 7 10 18 18 19 20 19 15 16 18 19 19 18 3 4 Final Capacity 20 | 5 20 20 20 20 20 20 20 20 15 20 20 20 20 5 5 5 Final Carried 20 | 2 7 9 16 19 20 20 20 19 12 18 20 19 18 5 4 5 Class Distribution -------------------- 47% | Mutant 28% | Scavenger-Mutant 19% | Hacker-Mutant 3% | Assassin Dominant Class ---------------- Mutant | -10/Materials Mutant | -10/Mines Mutant | -10/Exiles Scavenger-Mutant | -9/Mines Mutant | -8/Materials Scavenger-Mutant | -7/Factory Scavenger-Mutant | -7/Lower Caves Mutant | -7/Lower Caves Mutant | -6/Factory Mutant | -6/DSF Mutant | -5/Factory Scavenger-Mutant | -5/Upper Caves Hacker-Mutant | -5/Upper Caves Hacker-Mutant | -5/Warlord Mutant | -4/Proximity Caves Assassin | -4/Factory Resources | -11 -10 -10 -10 -9 -8 -7 -7 -7 -6 -6 -5 -5 -5 -5 -4 -4 ----------- Run | Yrd Mat Min Exi Min Mat Fac Low Low Fac DSF Fac Upp Upp War Pro Fac Matter Collected 2400 | 302 421 40 . 282 286 109 250 15 . 154 158 209 10 152 12 . Remotely . | . . . . . . . . . . . . . . . . . Salvage Created 3705 | 103 505 33 . 350 438 49 242 111 . . 142 705 275 752 . . Parts 169 | 12 38 1 . 33 14 6 17 5 . . 1 17 9 16 . . Haulers Intercepted 2 | . 1 . . . 1 . . . . . . . . . . . Recyclers Shooed 4 | 1 . . . . 2 . . . . . 1 . . . . . Parts Field Recycled . | . . . . . . . . . . . . . . . . . Retrieved Matter . | . . . . . . . . . . . . . . . . . Parts Self-Destructed 42 | . . . . . . . 15 5 . . . 13 9 . . . Prevented 2 | . . . . . . . 2 . . . . . . . . . Kills | -11 -10 -10 -10 -9 -8 -7 -7 -7 -6 -6 -5 -5 -5 -5 -4 -4 ------- Run | Yrd Mat Min Exi Min Mat Fac Low Low Fac DSF Fac Upp Upp War Pro Fac Combat Hostiles Destroyed 66 | . 11 1 . 9 6 1 6 4 . . . 12 4 12 . . Guns 59 | . 11 1 . 9 6 1 4 4 . . . 9 4 10 . . AOE 2 | . . . . . . . 2 . . . . . . . . . Classes Destroyed 15 | 1 5 . . 1 3 1 . . . . . 2 . 2 . . Worker 4 | . 2 . . 1 . . . . . . 1 . . . . . Tunneler 7 | 5 1 . . 1 . . . . . . . . . . . . Hauler 2 | . 1 . . . 1 . . . . . . . . . . . Recycler 3 | . . . . . 2 . . . . . 1 . . . . . Operator 1 | . 1 . . . . . . . . . . . . . . . Swarmer 16 | . 3 . . 4 . . 3 4 . . . . . 2 . . Grunt 28 | . 8 1 . 4 4 . . . . . . 5 2 4 . . Brawler 2 | . . . . 1 . . . . . . . 1 . . . . Duelist 1 | . . . . . . . . . . . . . . 1 . . Sentry 3 | . . . . . 1 . 1 . . . . . 1 . . . Demolisher 1 | . . . . . . . . . . . . . . 1 . . Hunter 8 | . . . . . 1 . 1 . . . . 3 1 2 . . Programmer 3 | . . . . . . 1 1 . . . . . . 1 . . Striker 1 | . . . . . . . . . . . . . . 1 . . Thug 2 | . . . . . . . . . . . . 1 . 1 . . Butcher 1 | . . . . . . . . . . . . 1 . . . . Mutant 1 | . . . . . . . . . . . . 1 . . . . Best Kill Streak 5 | 4 4 1 . 5 5 1 3 3 . . 1 3 3 3 . . Combat Bots Only 5 | . 3 1 . 5 3 1 3 3 . . . 3 3 3 . . Max Kills in Single Turn 2 | 1 1 1 . 2 1 1 2 1 . . 1 1 1 1 . . Gunslinging . | . . . . . . . . . . . . . . . . . Exploded 2 | . . . . . . . 2 . . . . . . . . . Melee . | . . . . . . . . . . . . . . . . . Uniques/NPCs Destroyed . | . . . . . . . . . . . . . . . . . Combat | -11 -10 -10 -10 -9 -8 -7 -7 -7 -6 -6 -5 -5 -5 -5 -4 -4 -------- Run | Yrd Mat Min Exi Min Mat Fac Low Low Fac DSF Fac Upp Upp War Pro Fac Hostile Shots Fired 891 | . 84 8 . 61 62 6 46 34 . 12 25 135 34 281 81 22 Missed 269 | . 30 1 . 12 11 2 17 5 . 2 10 33 11 88 41 6 Hits 622 | . 54 7 . 49 51 4 29 29 . 10 15 102 23 193 40 16 Melee 14 | . . . . 3 . . . . . . . 3 . 8 . . Projectile 608 | . 54 7 . 46 51 4 29 29 . 10 15 99 23 185 40 16 AOE 7 | . . . . . . . . . . . 2 . . 4 . 1 Critical Strikes 20 | . . . . 1 3 . . 1 . . 1 5 . 5 3 1 Part Disruptions 3 | . . . . . . . . . . 2 . . . 1 . . Damage Taken 10711 | . 613 82 . 520 826 60 322 456 . 112 607 2009 453 3375 792 484 Core 1548 | . 35 13 . 74 251 . 38 32 . . . 110 39 372 417 167 Absorbed by Shields 175 | . . . . . . . . . . . 12 62 . 101 . . Redirected to Shielding 26 | . . . . . . . . . . . . . . . . 26 Ignored by Resistances 464 | . . . . . 14 . 14 . . . 17 . . 419 . . Regen/Repaired (Parts) 633 | . . . . . 304 . . . . . . . . 329 . . Core Remaining (%) 66 | 100 . . . 51 54 . . 90 . 100 . . . . 6 . Volleys Fired 341 | 12 48 5 . 36 48 13 12 13 . 2 13 51 14 73 . 1 Largest 2 | 2 2 2 . 2 2 2 2 2 . 2 2 2 2 2 . 1 Hottest 162 | 40 40 40 . 65 128 110 110 110 . 110 160 160 150 162 . 81 Shots Fired 605 | 24 95 10 . 63 63 20 22 26 . 4 26 92 28 131 . 1 Gun 597 | 24 95 10 . 63 62 20 20 26 . 4 26 92 28 127 . . Cannon 6 | . . . . . 1 . . . . . . . . 4 . 1 Launcher 2 | . . . . . . . 2 . . . . . . . . . Special . | . . . . . . . . . . . . . . . . . Kinetic 222 | 24 95 10 . 53 40 . . . . . . . . . . . Thermal 375 | . . . . 10 22 20 20 26 . 4 26 92 28 127 . . Explosive . | . . . . . . . . . . . . . . . . . Electromagnetic 8 | . . . . . 1 . 2 . . . . . . 4 . 1 Robot Hit Streak 17 | 5 16 4 . 6 17 7 7 6 . 2 8 12 11 13 . 1 Robot Miss Streak 6 | 1 4 1 . 5 3 4 3 2 . 1 4 4 2 6 . . Penetration Max . | . . . . . . . . . . . . . . . . . Secondary Targets 12 | . 3 . . 2 1 . . . . . . 3 1 2 . . Max Gunslinging Chain 1 | . 1 . . 1 1 . . . . . . 1 1 1 . . Shots Hit Robots 417 | 17 61 5 . 37 53 10 12 19 . 3 21 72 23 83 . 1 Core Hits 182 | 5 26 3 . 15 23 2 9 6 . 1 7 37 10 37 . 1 Critical Kills 1 | . . . . 1 . . . . . . . . . . . . Critical Parts Destroyed 1 | . 1 . . . . . . . . . . . . . . . Critical Strikes 23 | . 1 . . 1 1 1 1 . . 1 . 2 . 15 . . Burn 20 | . . . . . 1 1 1 . . 1 . 2 . 14 . . Destroy 2 | . 1 . . 1 . . . . . . . . . . . . Corrupt 1 | . . . . . . . . . . . . . . 1 . . Melee Attacks 26 | . 3 . . . 2 2 . . . 3 . . . . 5 11 Impact 2 | . . . . . 2 . . . . . . . . . . . Slashing 24 | . 3 . . . . 2 . . . 3 . . . . 5 11 Piercing . | . . . . . . . . . . . . . . . . . Sneak Attacks 1 | . . . . . . 1 . . . . . . . . . . Combat Hostiles . | . . . . . . . . . . . . . . . . . Follow-up Attacks . | . . . . . . . . . . . . . . . . . Damage Inflicted 8282 | 216 790 65 . 515 1034 260 305 357 . 59 499 1515 506 2158 . 3 Guns 8055 | 216 785 64 . 515 1034 200 223 357 . 59 467 1515 506 2114 . . Cannons 47 | . . . . . . . . . . . . . . 44 . 3 Explosions 82 | . . . . . . . 82 . . . . . . . . . Melee 60 | . . . . . . 60 . . . . . . . . . . Ramming 38 | . 5 1 . . . . . . . . 32 . . . . . Kinetic 2185 | 216 785 64 . 410 710 . . . . . . . . . . . Thermal 5870 | . . . . 105 324 200 223 357 . 59 467 1515 506 2114 . . Explosive . | . . . . . . . . . . . . . . . . . Electromagnetic 129 | . . . . . . . 82 . . . . . . 44 . 3 Impact . | . . . . . . . . . . . . . . . . . Slashing 60 | . . . . . . 60 . . . . . . . . . . Piercing . | . . . . . . . . . . . . . . . . . Highest Corruption 10 | . . . . 10 . . 1 1 . 1 . . . 1 1 4 Average Corruption 3 | . . . . 9 . . 1 1 . 1 . . . 1 1 2 Corruption Purged . | . . . . . . . . . . . . . . . . . Corruption Blocked . | . . . . . . . . . . . . . . . . . Effects 36 | . . . . 21 . . 7 . . 1 . . . 3 4 . Message Errors 4 | . . . . 2 . . . . . . . . . 1 1 . Matter Fused 9 | . . . . 5 . . 2 . . 1 . . . . 1 . Heat Flow Errors 2 | . . . . 2 . . . . . . . . . . . . Energy Discharges 4 | . . . . 2 . . 2 . . . . . . . . . Parts Rejected 2 | . . . . 2 . . . . . . . . . . . . Data Loss (minor) 5 | . . . . 2 . . 1 . . . . . . 1 1 . Data Loss (major) 1 | . . . . . . . . . . . . . . . 1 . Misfires 3 | . . . . 2 . . 1 . . . . . . . . . Alerts 2 | . . . . 1 . . 1 . . . . . . . . . Weapon Failures 4 | . . . . 3 . . . . . . . . . 1 . . Overload Shots . | . . . . . . . . . . . . . . . . . Overflow Damage 20 | . . . . . . 20 . . . . . . . . . . Projectiles . | . . . . . . . . . . . . . . . . . Explosions . | . . . . . . . . . . . . . . . . . Melee 20 | . . . . . . 20 . . . . . . . . . . Knockbacks . | . . . . . . . . . . . . . . . . . Impact . | . . . . . . . . . . . . . . . . . Kinetic . | . . . . . . . . . . . . . . . . . Secondary . | . . . . . . . . . . . . . . . . . Self-Inflicted Damage . | . . . . . . . . . . . . . . . . . Shots . | . . . . . . . . . . . . . . . . . Rammed 2 | . 1 1 . . . . . . . . . . . . . . Targets Rammed 3 | . 1 1 . . . . . . . . 1 . . . . . Kicked . | . . . . . . . . . . . . . . . . . Crushed 1 | . . . . . . . . . . . 1 . . . . . Highest Temperature 442 | . 10 2 . 248 23 . 7 66 . 74 442 334 . 228 4 . Average Temperature 92 | . 4 1 . 41 10 . 4 41 . 38 161 114 . 86 4 . Received Heat Transfer 2122 | . 276 48 . 105 459 . 48 99 . . 66 476 144 241 160 . Effects 5 | . . . . . . . . . . . 2 3 . . . . Shutdowns 1 | . . . . . . . . . . . 1 . . . . . Energy Bleed 1 | . . . . . . . . . . . 1 . . . . . Interference 3 | . . . . . . . . . . . . 3 . . . . Siege Activations . | . . . . . . . . . . . . . . . . . Martial Activations . | . . . . . . . . . . . . . . . . . Shielding Activations . | . . . . . . . . . . . . . . . . . Robots Disrupted . | . . . . . . . . . . . . . . . . . Combat Hostiles . | . . . . . . . . . . . . . . . . . Robots Corrupted . | . . . . . . . . . . . . . . . . . Combat Hostiles . | . . . . . . . . . . . . . . . . . Parts Fried 2 | . . . . . . . . . . . . . . 2 . . Impact Corruptions . | . . . . . . . . . . . . . . . . . Robots Melted 4 | . . . . . . . . . . . . 3 . 1 . . Combat Hostiles 4 | . . . . . . . . . . . . 3 . 1 . . Parts Melted 19 | . . . . . 1 . . 1 . . . 5 2 10 . . Heat Transferred 11497 | . . . . 259 740 407 481 703 . 185 766 3165 851 3940 . . Parts Sabotaged . | . . . . . . . . . . . . . . . . . Parts Stolen . | . . . . . . . . . . . . . . . . . Parts Stripped . | . . . . . . . . . . . . . . . . . Power Chain Reactions . | . . . . . . . . . . . . . . . . . Alert | -11 -10 -10 -10 -9 -8 -7 -7 -7 -6 -6 -5 -5 -5 -5 -4 -4 ------- Run | Yrd Mat Min Exi Min Mat Fac Low Low Fac DSF Fac Upp Upp War Pro Fac Maximum Alert Level 1 | . . . . . . . . . . 1 . . . . . . Low Security (%) 98 | 100 100 100 . 100 100 100 . . 100 62 100 . . . . 100 Level 1 1 | . . . . . . . . . . 37 . . . . . . Level 2 . | . . . . . . . . . . . . . . . . . Level 3 . | . . . . . . . . . . . . . . . . . Level 4 . | . . . . . . . . . . . . . . . . . Level 5 . | . . . . . . . . . . . . . . . . . High Security . | . . . . . . . . . . . . . . . . . Max Security . | . . . . . . . . . . . . . . . . . Sterilizations 1 | . . . . . . . . . . 1 . . . . . . Peak Influence 269 | 10 112 48 . 170 58 30 . . 28 269 146 . . . . 70 Initial 140 | . . 15 . . 4 7 . . 28 23 140 . . . . 59 Average 30 | 1 35 5 . 67 11 2 . . 28 139 43 . . . . 11 Influence Increases 2745 | 25 307 56 . 270 209 37 165 105 5 346 306 235 105 405 120 49 Destroy 0b10 Robot/C 1580 | . 220 40 . 180 120 20 120 80 . 160 140 180 80 240 . . Destroy 0b10 Robot/NC 95 | 25 25 . . 15 15 . . . . . 15 . . . . . Destroy Leader 264 | . 52 10 . 30 32 10 30 10 . 20 20 40 10 . . . Allied During Kill 209 | . . 6 . . . . . . . 148 55 . . . . . Successful Hack 79 | . 7 . . . 10 6 . . 5 . 16 . . . . 35 Disable Machine 45 | . . . . . . . . . . 15 30 . . . . . Destroy Structure 53 | . 3 . . . 2 1 . . . 3 30 . . . . 14 Lose Combat Pursuer 420 | . . . . 45 30 . 15 15 . . . 15 15 165 120 . Influence Decreases 2745 | 25 268 95 . 258 203 55 165 60 17 110 575 235 105 280 150 144 Entered New Map 360 | . . 24 . . 8 11 . . 17 10 129 . . . 125 36 Time Decay 1849 | 25 258 71 . 248 158 44 165 30 . . 297 225 95 120 25 88 Lost Part 317 | . 10 . . 10 37 . . 30 . . 30 10 10 160 . 20 Lost Ally 171 | . . . . . . . . . . 100 71 . . . . . Purge Threat 48 | . . . . . . . . . . . 48 . . . . . Squads Dispatched 15 | . 3 . . . 1 2 . . . 2 3 . . . . 4 Investigation 3 | . . . . . 1 . . . . . 1 . . . . 1 Extermination 3 | . . . . . . 1 . . . . 1 . . . . 1 Reinforcement 7 | . 3 . . . . 1 . . . 2 1 . . . . . Assault 2 | . . . . . . . . . . . . . . . . 2 Garrison . | . . . . . . . . . . . . . . . . . Intercept . | . . . . . . . . . . . . . . . . . Searches Triggered . | . . . . . . . . . . . . . . . . . Construction Impeded . | . . . . . . . . . . . . . . . . . Haulers Reinforced 1 | . . . . . . . . . . . 1 . . . . . Active Scanning Responses . | . . . . . . . . . . . . . . . . . Cargo Convoy Interrupts . | . . . . . . . . . . . . . . . . . Stealth | -11 -10 -10 -10 -9 -8 -7 -7 -7 -6 -6 -5 -5 -5 -5 -4 -4 --------- Run | Yrd Mat Min Exi Min Mat Fac Low Low Fac DSF Fac Upp Upp War Pro Fac Distress Signals 1 | . . . . . . . . . . . . . . 1 . . Communications Jammed 1 | . . . . . . . . . . . 1 . . . . . Distress Signals 1 | . . . . . . . . . . . 1 . . . . . Times Spotted 195 | . 19 2 . 12 13 2 7 8 . 5 8 12 5 91 9 2 Peak Tracking Total 25 | . 4 2 . 7 3 1 3 4 . 3 4 3 3 25 8 2 Tactical Retreats 16 | . . . . 2 1 . 1 1 . . . 1 1 7 2 . Traps | -11 -10 -10 -10 -9 -8 -7 -7 -7 -6 -6 -5 -5 -5 -5 -4 -4 ------- Run | Yrd Mat Min Exi Min Mat Fac Low Low Fac DSF Fac Upp Upp War Pro Fac Traps Triggered 3 | . . . . . 2 . . . . . . . . . . 1 Indirectly . | . . . . . . . . . . . . . . . . . Trap Hack Attempts . | . . . . . . . . . . . . . . . . . Triggered . | . . . . . . . . . . . . . . . . . Disarmed . | . . . . . . . . . . . . . . . . . Reprogrammed . | . . . . . . . . . . . . . . . . . Reused . | . . . . . . . . . . . . . . . . . Traps Extracted . | . . . . . . . . . . . . . . . . . Installed . | . . . . . . . . . . . . . . . . . Triggered . | . . . . . . . . . . . . . . . . . Machines | -11 -10 -10 -10 -9 -8 -7 -7 -7 -6 -6 -5 -5 -5 -5 -4 -4 ---------- Run | Yrd Mat Min Exi Min Mat Fac Low Low Fac DSF Fac Upp Upp War Pro Fac Machines Disabled 3 | . . . . . . . . . . 1 2 . . . . . Max in Single Turn . | . . . . . . . . . . . . . . . . . Garrison Access 1 | . . . . . . . . . . . . . . . . 1 Machines Repaired . | . . . . . . . . . . . . . . . . . Machines Dismantled . | . . . . . . . . . . . . . . . . . Machines Sabotaged . | . . . . . . . . . . . . . . . . . Overloaded Fab Kills . | . . . . . . . . . . . . . . . . . Hacking | -11 -10 -10 -10 -9 -8 -7 -7 -7 -6 -6 -5 -5 -5 -5 -4 -4 --------- Run | Yrd Mat Min Exi Min Mat Fac Low Low Fac DSF Fac Upp Upp War Pro Fac Machines Accessed 25 | . 1 1 5 . 4 3 . . 1 . 3 1 . 3 . 3 Terminals 12 | . 1 1 . . 3 1 . . 1 . 2 1 . . . 2 Fabricators 1 | . . . . . . 1 . . . . . . . . . . Repair Stations 1 | . . . . . 1 . . . . . . . . . . . Recycling Units 1 | . . . . . . . . . . . . . . . . 1 Scanalyzers 1 | . . . . . . . . . . . 1 . . . . . Garrison Access 1 | . . . . . . 1 . . . . . . . . . . Total Hacks 76 | . 2 2 31 . 9 6 . . 2 . 8 1 . 6 . 9 Successful 52 | . 1 . 31 . 4 1 . . 1 . 4 1 . 6 . 3 Failed 24 | . 1 2 . . 5 5 . . 1 . 4 . . . . 6 Catastrophic 4 | . . . . . . 1 . . . . 2 . . . . 1 Database Lockouts . | . . . . . . . . . . . . . . . . . Manual 15 | . 1 . 1 . 3 2 . . . . 4 . . . . 4 Terminals 26 | . 2 2 . . 6 2 . . 2 . 4 1 . . . 7 Fabricators 3 | . . . . . . 3 . . . . . . . . . . Repair Stations 3 | . . . . . 3 . . . . . . . . . . . Recycling Units 2 | . . . . . . . . . . . . . . . . 2 Scanalyzers 4 | . . . . . . . . . . . 4 . . . . . Garrison Access 1 | . . . . . . 1 . . . . . . . . . . Terminal Hacks 44 | . 1 . 31 . 1 . . . 1 . 1 1 . 6 . 2 Record 38 | . . . 30 . . . . . . . . 1 . 6 . 1 Open DSF 1 | . . . . . . . . . 1 . . . . . . . Branch Access Points 2 | . 1 . . . 1 . . . . . . . . . . . Unreport Threat 1 | . . . . . . . . . . . 1 . . . . . Recall Investigation 1 | . . . . . . . . . . . . . . . . 1 Proto ID Catalog 1 | . . . 1 . . . . . . . . . . . . . Fabricator Hacks 1 | . . . . . . 1 . . . . . . . . . . Build 1 | . . . . . . 1 . . . . . . . . . . Repair Station Hacks 2 | . . . . . 2 . . . . . . . . . . . Scan Component 1 | . . . . . 1 . . . . . . . . . . . Repair 1 | . . . . . 1 . . . . . . . . . . . Recycling Unit Hacks . | . . . . . . . . . . . . . . . . . Scanalyzer 3 | . . . . . . . . . . . 3 . . . . . Insert Component 2 | . . . . . . . . . . . 2 . . . . . Analyze 1 | . . . . . . . . . . . 1 . . . . . Garrison Access Hacks . | . . . . . . . . . . . . . . . . . Unauthorized Hacks 2 | . . . . . 1 . . . . . . . . . . 1 Terminals 2 | . . . . . 1 . . . . . . . . . . 1 Assimilate 1 | . . . . . 1 . . . . . . . . . . . Botnet 1 | . . . . . . . . . . . . . . . . 1 Fabricators . | . . . . . . . . . . . . . . . . . Repair Stations . | . . . . . . . . . . . . . . . . . Recycling Units . | . . . . . . . . . . . . . . . . . Scanalyzers . | . . . . . . . . . . . . . . . . . Garrison Access . | . . . . . . . . . . . . . . . . . Data Cores Recovered . | . . . . . . . . . . . . . . . . . Used . | . . . . . . . . . . . . . . . . . Hacking Detections 15 | . 1 1 . . 4 3 . . . . 3 . . . . 3 Full Trace Events 3 | . . . . . 1 . . . . . 1 . . . . 1 Feedback Events . | . . . . . . . . . . . . . . . . . Feedback Blocked . | . . . . . . . . . . . . . . . . . Robot Schematics Acquired . | . . . . . . . . . . . . . . . . . Robots Built 1 | . . . . . . 1 . . . . . . . . . . Authchips . | . . . . . . . . . . . . . . . . . Time 116 | . . . . . . 116 . . . . . . . . . . Total Robot Build Rating 3 | . . . . . . 3 . . . . . . . . . . Part Schematics Acquired 1 | . . . . . . . . . . . 1 . . . . . Parts Built . | . . . . . . . . . . . . . . . . . Authchips . | . . . . . . . . . . . . . . . . . Time . | . . . . . . . . . . . . . . . . . Total Part Build Rating . | . . . . . . . . . . . . . . . . . Parts Repaired 1 | . . . . . 1 . . . . . . . . . . . Time 26 | . . . . . 26 . . . . . . . . . . . Parts Recycled . | . . . . . . . . . . . . . . . . . Recycled Matter . | . . . . . . . . . . . . . . . . . Retrieved Matter . | . . . . . . . . . . . . . . . . . Retrieved Components . | . . . . . . . . . . . . . . . . . Parts Scanalyzed 1 | . . . . . . . . . . . 1 . . . . . Part Schematics Acquired 1 | . . . . . . . . . . . 1 . . . . . Parts Damaged 1 | . . . . . . . . . . . 1 . . . . . Bothacking | -11 -10 -10 -10 -9 -8 -7 -7 -7 -6 -6 -5 -5 -5 -5 -4 -4 ------------ Run | Yrd Mat Min Exi Min Mat Fac Low Low Fac DSF Fac Upp Upp War Pro Fac Used RIF Installer . | . . . . . . . . . . . . . . . . . Robots Hacked . | . . . . . . . . . . . . . . . . . Non-combat . | . . . . . . . . . . . . . . . . . Combat . | . . . . . . . . . . . . . . . . . Robot Hacks Applied . | . . . . . . . . . . . . . . . . . Relay Couplers Released 2 | . . . . . . . . . . . . . . . . 2 Machine Destruction 2 | . . . . . . . . . . . . . . . . 2 Fabnet Peak Effective % . | . . . . . . . . . . . . . . . . . Robots Rewired . | . . . . . . . . . . . . . . . . . Allies Hacked . | . . . . . . . . . . . . . . . . . Hacks Repelled . | . . . . . . . . . . . . . . . . . Allies | -11 -10 -10 -10 -9 -8 -7 -7 -7 -6 -6 -5 -5 -5 -5 -4 -4 -------- Run | Yrd Mat Min Exi Min Mat Fac Low Low Fac DSF Fac Upp Upp War Pro Fac Total Allies 5 | . . 2 . 1 1 1 . . . . . . . . . . Largest Group 2 | . . 2 2 1 1 1 . . . . . . . . . . Highest-Rated Group 46 | . . 46 46 31 10 23 . . . . . . . . . . Highest-Rated Ally 31 | . . 31 31 31 10 23 . . . . . . . . . . Initial Warlord ECA Mod 52 | . . . . . . . . . . . 9 9 9 9 8 8 Total Orders 15 | . . . . . . . . . . 15 . . . . . . ROAM 6 | . . . . . . . . . . 6 . . . . . . FOLLOW 1 | . . . . . . . . . . 1 . . . . . . RETURN 8 | . . . . . . . . . . 8 . . . . . . Ally Attacks 118 | . . 7 . 3 . . . . . 65 43 . . . . . Total Damage 2767 | . . 105 . 20 . . . . . 1002 1640 . . . . . Kills 24 | . . 1 . . . . . . . 10 13 . . . . . Allies Corrupted 1 | . . . . 1 . . . . . . . . . . . . Allies Melted 1 | . . . . . . . . . . . . . . 1 . . Intel | -11 -10 -10 -10 -9 -8 -7 -7 -7 -6 -6 -5 -5 -5 -5 -4 -4 ------- Run | Yrd Mat Min Exi Min Mat Fac Low Low Fac DSF Fac Upp Upp War Pro Fac Active Infowar (turns) 4468 | 47 797 778 1665 58 185 . . . . . 466 . . . 1 471 Terrain 540 | . 69 . . . . . . . . . . . . . . 471 Seismic 3530 | 47 797 778 1665 58 185 . . . . . . . . . . . Jamming 467 | . . . . . . . . . . . 466 . . . 1 . Robot Analysis Total . | . . . . . . . . . . . . . . . . . Derelict Logs Recovered 9 | . . 1 . 3 . . 2 . . . . 1 1 . 1 . Drone Launches 51 | . . . . . . . . . . 51 . . . . . . Drone Recoveries 21 | . . . . . . . . . . 21 . . . . . . Exploration | -11 -10 -10 -10 -9 -8 -7 -7 -7 -6 -6 -5 -5 -5 -5 -4 -4 ------------- Run | Yrd Mat Min Exi Min Mat Fac Low Low Fac DSF Fac Upp Upp War Pro Fac Turns Passed 12363 | 145 797 778 1665 610 1261 607 698 97 17 300 1011 1056 1087 1364 358 512 Spaces Moved 6309 | 70 305 312 692 271 483 412 403 23 6 96 431 550 659 676 581 339 Core 499 | 7 13 . . 2 9 . . . . . . . . . 129 339 Treads 4374 | 50 277 312 692 58 145 69 403 23 1 89 419 550 659 627 . . Legs 255 | . . . . . 255 . . . . . . . . . . . Wheels 668 | 13 15 . . 211 74 343 . . 5 7 . . . . . . Hover 12 | . . . . . . . . . . . 12 . . . . . Flight 501 | . . . . . . . . . . . . . . 49 452 . Fastest Speed 45 | 50 100 240 240 155 155 115 160 160 160 160 155 155 158 62 45 50 Average Speed 170 | 137 193 240 240 179 214 126 160 201 173 240 212 157 158 152 58 135 Slowest Speed 850 | 160 240 240 240 750 850 240 160 240 240 250 385 158 158 252 85 200 Overloaded Moves . | . . . . . . . . . . . . . . . . . Propulsion Burnouts . | . . . . . . . . . . . . . . . . . Robots Hopped 4 | . . . . . . . . . . . . . . 4 . . Potential Cave-ins 6 | . . . . . . . . . . . . . . . 2 4 Cave-ins Triggered . | . . . . . . . . . . . . . . . . . Exploration Rate (%) 49 | 5 52 72 92 56 28 12 54 7 . 97 12 76 81 67 78 8 Regions Visited 16 Branch Regions 9 Pre-discovered Areas 5 | . . . 1 2 . . . . . . . 1 . 1 . . Known Exits Taken 3 | . 1 . . . 1 . . . 1 . . . . . . . Unknown Exits Taken 12 | 1 . 1 1 1 . 1 1 1 . . 1 1 1 1 1 . Scrap Searched 12 | . . . . 3 . . 2 . . . . 3 3 . 1 . Spaces Dug 22 | . 3 . . . 1 1 . . . 1 . . . . 5 11 Terrain Destroyed 30 | . 3 . . . 1 1 . . . 1 . 2 2 4 5 11 Melee 22 | . 3 . . . 1 1 . . . 1 . . . . 5 11 Projectile 8 | . . . . . . . . . . . . 2 2 4 . . AOE . | . . . . . . . . . . . . . . . . . Terrain Rammed . | . . . . . . . . . . . . . . . . . Walls Destroyed . | . . . . . . . . . . . . . . . . . Machines Disabled . | . . . . . . . . . . . . . . . . . Actions | -11 -10 -10 -10 -9 -8 -7 -7 -7 -6 -6 -5 -5 -5 -5 -4 -4 --------- Run | Yrd Mat Min Exi Min Mat Fac Low Low Fac DSF Fac Upp Upp War Pro Fac Total 7305 | 91 409 331 698 333 643 477 434 49 14 160 502 640 677 888 590 369 Wait 270 | . 28 12 . 5 30 21 12 13 . 21 . 18 . 106 . 4 Move 6286 | 69 304 311 691 270 482 411 402 22 5 95 430 549 658 668 580 339 Hop 3 | . . . . . . . . . . . . . . 3 . . Pick Up 90 | 2 9 2 4 5 26 6 . . . 10 13 3 2 6 . 2 Fast Attach 68 | 6 3 . . 6 19 3 2 . 1 3 10 3 . 3 2 7 Attach 45 | . 1 . . 2 8 1 . 1 2 . 11 3 3 8 2 3 Detach 24 | . . . . 2 3 . . . 3 1 9 1 . 2 1 2 Swap 56 | 2 7 . . 4 5 8 3 . 1 11 2 6 . 7 . . Drop 91 | . 5 . 2 3 20 12 3 . 2 14 12 6 . 12 . . Fire 341 | 12 48 5 . 36 48 13 12 13 . 2 13 51 14 73 . 1 Melee 26 | . 3 . . . 2 2 . . . 3 . . . . 5 11 Ram . | . . . . . . . . . . . . . . . . . Kick . | . . . . . . . . . . . . . . . . . Crush 3 | . 1 1 . . . . . . . . 1 . . . . . Escape Stasis . | . . . . . . . . . . . . . . . . . Rewire 2 | . . . 1 . . . . . . . 1 . . . . . Trap . | . . . . . . . . . . . . . . . . . Miscellaneous . | . . . . . . . . . . . . . . . . . Route ------- -11/Scrapyard -10/Materials (discovered 4 exits: [*Mat x2] / *Min x2) -10/Mines (discovered 2 exits: [*Mat] / *Exi) -10/Exiles -9/Mines -8/Materials (discovered 2 exits: *Fac x2) -7/Factory -7/Lower Caves -7/Lower Caves -6/Factory (discovered 2 exits: Fac / DSF) -6/DSF -5/Factory -5/Upper Caves -5/Upper Caves (discovered 2 exits: *Fac / *War) -5/Warlord -4/Proximity Caves -4/Factory History --------- Turn | Location | Event 28 | -11/Scrapyard | Discovered new exit (range 16) 146 | -11/Scrapyard | Entered Materials 300 | -10/Materials | Build established: Mutant 387 | -10/Materials | Discovered new exit (range 10) 641 | -10/Materials | Identified exit to Mines 763 | -10/Materials | Discovered new exit (range 5) 943 | -10/Materials | Entered Mines 1503 | -10/Mines | Discovered new exit (range 10) 1671 | -10/Mines | Learned Materials terminal intel 1690 | -10/Mines | Deemed a non-threat by the Exiles lab entrance 1692 | -10/Mines | Discovered new exit (range 5) 1721 | -10/Mines | Entered Exiles 1721 | -10/Exiles | Accompanied by 2 allies 1751 | -10/Exiles | Led the pair of lost Derelicts to a safe place 1777 | -10/Exiles | Met 8R-AWN 1817 | -10/Exiles | Met EX-HEX 1911 | -10/Exiles | Met EX-DEC 1985 | -10/Exiles | Learned location of Zion (-7) 2105 | -10/Exiles | Discovered new exit (range 12) 2335 | -10/Exiles | Visited The Gauntlet 2877 | -10/Exiles | Met EX-BIN 2915 | -10/Exiles | Aligned with FarCom system 2918 | -10/Exiles | Given EX-Vault access code 3031 | -10/Exiles | Opened EX-Vault 3047 | -10/Exiles | Found Chronowheel 3058 | -10/Exiles | Found Army-in-a-Box 3158 | -10/Exiles | Warned to stay clear of 0b10 Research branches 3386 | -10/Exiles | Left Exiles lab with Army-in-a-Box 3386 | -10/Exiles | Entered Mines 3389 | -9/Mines | Received a Mining Laser from a helpful Derelict 3413 | -9/Mines | Learned location of Storage (-9) 3450 | -9/Mines | System corruption reached 10% 3480 | -9/Mines | Lost 3 parts (1p1n1u) 3846 | -9/Mines | Learned 2 Materials zone layouts 3956 | -9/Mines | Build established: Scavenger-Mutant 3982 | -9/Mines | Discovered new exit (range 5) 3996 | -9/Mines | Entered Materials 3996 | -8/Materials | Evolved 4 slots: Utility x4 3997 | -8/Materials | Identified exit to Factory 3998 | -8/Materials | Loaded intel: 12 terminal locations 4220 | -8/Materials | Lost 7 parts (1p2n2u2w) 4471 | -8/Materials | Build established: Mutant 5046 | -8/Materials | Repaired Hcp. Storage Unit 5133 | -8/Materials | Build established: Scavenger-Mutant 5153 | -8/Materials | Discovered exit to Factory (range 8) 5257 | -8/Materials | Entered Factory 5257 | -7/Factory | Evolved 2 slots: Propulsion x1, Utility x1 5496 | -7/Factory | Fabricated M-28 Smith? 5857 | -7/Factory | Discovered new exit (range 4) 5864 | -7/Factory | Entered Lower Caves 5961 | -7/Lower Caves | Attracted the attention of an 0b10 checkpoint 6057 | -7/Lower Caves | Learned 4 Factory zone layouts 6395 | -7/Lower Caves | Learned Factory terminal intel 6552 | -7/Lower Caves | Discovered new exit (range 7) 6562 | -7/Lower Caves | Entered another Lower Caves area 6577 | -7/Lower Caves | Discovered new exit (range 9) 6624 | -7/Lower Caves | Lost 3 parts (1n2u) 6659 | -7/Lower Caves | Entered Factory 6659 | -6/Factory | Evolved 2 slots: Propulsion x1, Utility x1 6660 | -6/Factory | Identified exit to Factory 6661 | -6/Factory | Loaded intel: 26 terminal locations 6676 | -6/Factory | Identified exit to DSF 6676 | -6/Factory | Entered DSF 6719 | -6/DSF | Additional patrols routed to DSF 6873 | -6/DSF | Discovered exit to Factory (range 24) 6889 | -6/DSF | Build established: Mutant 6893 | -6/DSF | Lost 3 allies 6897 | -6/DSF | Sterilization system engaged 6917 | -6/DSF | Ambient heat levels rising (+10) 6932 | -6/DSF | Ambient heat levels rising (+10) 6947 | -6/DSF | Ambient heat levels rising (+10) 6962 | -6/DSF | Ambient heat levels rising (+10) 6976 | -6/DSF | Entered Factory 6976 | -5/Factory | Accompanied by 13 allies 6976 | -5/Factory | Evolved 2 slots: Propulsion x1, Utility x1 7537 | -5/Factory | Lost 3 allies 7649 | -5/Factory | Lost 5 allies 7749 | -5/Factory | Lost 5 allies 7971 | -5/Factory | Discovered new exit (range 9) 7987 | -5/Factory | Entered Upper Caves 8112 | -5/Upper Caves | Attacked by a faux Warlord 8177 | -5/Upper Caves | Met a Warlord Commander 8178 | -5/Upper Caves | Learned location of Warlord (-5) 8179 | -5/Upper Caves | Warlord Commander delivered Encrypted Comm Array 8187 | -5/Upper Caves | Found Encrypted Comm Array 8231 | -5/Upper Caves | Learned Factory non-interactive machine intel 8460 | -5/Upper Caves | Build established: Scavenger-Mutant 8836 | -5/Upper Caves | Discovered new exit (range 7) 9043 | -5/Upper Caves | Entered another Upper Caves area 9099 | -5/Upper Caves | Discovered new exit (range 16) 9104 | -5/Upper Caves | Build established: Hacker-Mutant 9299 | -5/Upper Caves | Discovered new exit (range 7) 9871 | -5/Upper Caves | Attracted the attention of an 0b10 checkpoint 10130 | -5/Upper Caves | Entered Warlord 10554 | -5/Warlord | Learned location of Command (-1) 10554 | -5/Warlord | Learned Armory stockpile data 10556 | -5/Warlord | Learned 4 Armory zone layouts 10559 | -5/Warlord | Learned Armory scanalyzer intel 10559 | -5/Warlord | Learned Research recycling unit intel 10718 | -5/Warlord | Met Warlord 10743 | -5/Warlord | Warlord's base attacked by MAIN.C 10914 | -5/Warlord | P-70 Sage assimilated allied PM-9JD(Y) 11093 | -5/Warlord | Warlord forces counterattacked 11096 | -5/Warlord | Spotted B-86 Titan 11098 | -5/Warlord | Spotted B-75 Beast 11168 | -5/Warlord | Lost 5 allies 11185 | -5/Warlord | Spotted Striker 11229 | -5/Warlord | Spotted Striker 11268 | -5/Warlord | Build established: Scavenger-Mutant 11279 | -5/Warlord | Spotted Striker 11282 | -5/Warlord | P-80 Master assimilated allied 7T-G17(g) 11301 | -5/Warlord | Destroyed Striker 11311 | -5/Warlord | Spotted Executioner 11323 | -5/Warlord | Lost 22 allies 11365 | -5/Warlord | Lost 4 allies 11409 | -5/Warlord | Spotted Striker 11418 | -5/Warlord | Warlord base infiltrated, sounded retreat 11480 | -5/Warlord | Spotted Striker 11480 | -5/Warlord | Spotted Executioner 11483 | -5/Warlord | Spotted Striker 11485 | -5/Warlord | Spotted Striker 11488 | -5/Warlord | Discovered new exit (range 9) 11492 | -5/Warlord | Core integrity fell below 50% 11494 | -5/Warlord | Entered Proximity Caves 11522 | -4/Proximity Caves | Lost 14 parts (5n6u3w) 11530 | -4/Proximity Caves | Spotted B-86 Titan 11653 | -4/Proximity Caves | Core integrity fell below 20% 11672 | -4/Proximity Caves | Learned Research trap positions 11775 | -4/Proximity Caves | Attracted the attention of an 0b10 checkpoint 11847 | -4/Proximity Caves | Discovered new exit (range 11) 11852 | -4/Proximity Caves | Entered Factory 11852 | -4/Factory | Evolved 2 slots: Power x1, Propulsion x1 11853 | -4/Factory | Loaded intel: 176 non-interactive machine locations 12172 | -4/Factory | Build established: Assassin 12364 | -4/Factory | Self-destructed Last Messages --------------- 11988_ Adv. Targeting Computer broken. 11988_ Faulty integration triggers power surge. 12008_ The unstable cave ceiling collapses. 12125_ Acquired Imp. Weapon Shielding. 12132_ Acquired Imp. Recalibrator. 12138_ Adv. Targeting Computer functionality restored. 12235_ ALERT: Potential suspicious activity detected, Programmers report to Factory Zone 2G. 12342_ ALERT: All DSF locations entering lockdown mode. 12346_ Axe destroyed. 12352_ Nuclear Reactor explodes. 12352_ Hvy. Treads destroyed. 12358_ Stasis Canceller destroyed. 12360_ Adv. Targeting Computer destroyed. 12361_ P-70 Sage resets P-70 Sage, system corruption cleaned. [Achievement: 10k Club] Map ----- +----------------------------------------------------+ | ??????????????????????## """"""" # | | ???????????????????????# """"""" " | | ????????????????????#??# """"""" # ######## | | ???????????????????????# # #??????? | | ?????????????????#?????# """"""" # ######## | | ???????????????????#???# """"""" # # | | ??????????????????????## """"""" # # | | ???????????????#??#??#?# """"""" + # | | ?????????????????#????## # # | | ???????????????????????# # # | | ???????????????????????#############" # | | ?????????????????????????# #?#??#??## # | | ???????????????#?????????# #??#?????# # | | ?????????????????#???????# #???#????# # | | ?????????????????????#???# #???????## # | | ??????????????????#?????############" # | | """"?????????????????????## #?? | | """"??????????????????????# #####+## | | """"??????????????#???????# | | """"??????????????????????# """ | | """"??????????????????????# """ | | """"?????????????????????## """ | | """"????????????????#?????# | | ????????????????????????#?# p | | ?????????????????############# p | | ?????????? @ | | ?????????? R | | ?????????? | | ??????????? | | ??????????? | | ????????????#####################+###########+#### | | ????????????????????????????# " | | ????????????????????????????# # | | ????????????????????????????# # """ """ | | ""????????????????????????#?# """ # """ """ | | ""????????????????????#?????# !! """ # """ """ | | ""????????????????#?????????#!!! """ # | | ""??????????????????????????#!! # """ """ | | ????????????????????????????# # """ """ | | ?????????????????#??????????########### """ """ | | ??????????????????????????????????????# | | ?????????????????????????##??#????????# | | ??????????????????????????#???????????# | | ???????????????????????????#???##?????##"######### | | ???????????????????????????????#######?# | | ???????????????????????????????# #?# ######### | | ???????????????????????????????# "" ### #???????? | | ????????????????????????????#??# T #??#????? | | ????????????????????????#???#??# #####???????? | | ???????????????????????????#???# #???????????? | +----------------------------------------------------+ Best States ------------- Heat Dissipation 78 Energy Generation 19 Energy Capacity 315 Matter Stores 300 Matter Capacity 300 Sight Range 16 Terrain Scan Range 16 Terrain Scan Density 10 Jamming Range 14 Additional Mass Support 6 Armor Coverage 825 Resistance: KI 20 Resistance: TH 10 Weapon Shielding 66 Evasion (%) 61 Targeting Accuracy 11 Target Analysis 8 Core Analysis 6 Recoil Reduction 5 Energy Filtering 30 Offensive Hacking 20 Item Schematics ----------------- Field Propulsion Drive | -5/Factory | Scanalyzed Robot Schematics ------------------ None Fabricated ------------ M-28 Smith | x1 | -7/Factory | Preloaded Repaired ---------- Hcp. Storage Unit | 39% | -8/Materials Alien Tech Used ----------------- None Achievements -------------- 10k Club A Powerful Ally? Charge!!! Close Call Hunted Leap Before You Look My Command Is Your Wish Release The Drones! Respectable Loadout Universal Adapter Challenges ------------ None Game ------ Seed FusionColdCharge Manual? 0 Play Time 02:27:21 Cumulative 49.7 hours Start 2025.05.13 @ 00:34:46 End 2025.05.13 @ 03:06:59 Sessions 1 Manual Loads 0 Difficulty Rogue Special Mode None Game No. 57 Rogue 57 Adventurer 0 Explorer 0 Win Type - Total 0 Types 0/0/0/0/0/0/0/0/0/0 Lore% 16 Gallery% 27 Achievement% 19 Wizard Run 0 Options --------- Layout 1 ASCII 0 Keyboard 0 Movement Mouse Keybinds 0 Fullscreen 2 Font 32/SmallcapsGlow Map View 50x35 Zoom Use 0% Tactical HUD 1 Map Filters NONE Filters NONE Steam 1 RUN: 8a5ce84b-69ec-428d-ad29-cbc8db227de1